bitfinex/quotes_ETHUSD_20260207
["timestamp","ask_amount","ask_price","bid_price","bid_amount"]
[1770500136225,3.30430929,2110.3,2109.8,0.001]
[1770500136950,2.11363844,2110.2,2109.8,0.001]
[1770500137923,0.006,2110.1,2109.8,0.001]
[1770500138922,3.29831475,2110.3,2109.8,0.001]
[1770500139122,0.006,2110.1,2109.8,0.001]
[1770500140155,2.11963844,2110.1,2109.8,0.001]
[1770500140335,2.11363844,2110.1,2109.8,0.001]
[1770500140534,0.006,2110.0,2109.8,0.001]
[1770500140735,2.11963844,2110.0,2109.8,0.001]
[1770500141527,0.006,2110.0,2109.8,0.001]
[1770500142032,2.11963844,2110.0,2109.8,0.001]
[1770500144854,0.002,2110.1,2109.8,2.16653452]
[1770500145059,0.002,2110.1,2109.8,0.001]
[1770500146350,0.006,2110.0,2109.8,0.001]
[1770500146932,2.11963844,2110.0,2109.6,0.001]
[1770500147561,0.006,2110.0,2109.6,1.18604968]
[1770500149162,0.006,2110.0,2109.6,0.001]
[1770500150063,2.11363844,2109.9,2109.6,0.001]
[1770500150262,4.3020039,2110.0,2109.6,0.001]
[1770500150445,0.006,2110.0,2109.6,0.001]
[1770500153474,0.006,2110.0,2109.6,2.16653452]
[1770500154153,0.002,2110.1,2109.6,2.16653452]
[1770500155367,0.002,2110.1,2109.7,3.35053712]
[1770500155733,0.008,2110.1,2109.7,3.35053712]
[1770500155943,0.008,2110.1,2109.8,2.16553452]
[1770500156739,0.008,2110.1,2109.8,2.16653452]
[1770500157140,0.002,2109.9,2109.8,2.16653452]
[1770500157752,0.002,2109.9,2109.8,3.35148096]
[1770500158064,0.002,2110.3,2109.8,3.35148096]
[1770500158570,0.002,2110.3,2109.9,2.16553452]
[1770500159450,0.002,2110.3,2109.8,1.18594644]
[1770500159451,6.40976818,2110.2,2109.8,1.18594644]
[1770500159648,6.40976818,2110.2,2109.8,0.001]
[1770500159855,0.002,2110.3,2109.8,0.001]
[1770500160256,1.18668275,2110.3,2109.8,0.001]
[1770500160567,0.002,2110.3,2109.8,0.001]
[1770500160774,0.002,2110.3,2109.8,2.16653452]
[1770500163268,0.002,2110.3,2109.9,3.35042479]
[1770500165257,0.002,2110.3,2109.9,1.18489027]
[1770500165553,0.00200001,2110.6,2110.3,2.12990115]
[1770500165768,0.002,2110.8,2110.3,2.12990115]
[1770500165952,0.00200001,2110.7,2109.9,2.12990115]
[1770500166360,0.00200001,2110.6,2109.9,2.12990115]
[1770500167478,0.00200001,2110.6,2110.1,2.12990115]
[1770500168953,0.002,2110.8,2110.1,2.12990115]
[1770500169181,0.00200001,2110.7,2110.1,2.12990115]
[1770500169554,0.00200001,2110.7,2110.4,0.001]
[1770500170377,0.002,2110.6,2110.4,0.001]
[1770500171355,2.18476873,2110.6,2110.4,0.001]
[1770500171692,2.23228125,2110.4,2109.8,0.001]
[1770500171860,6.52841099,2110.3,2109.8,0.001]
[1770500172682,0.00200001,2110.2,2109.8,0.001]
[1770500172888,2.23428126,2110.2,2109.8,0.001]
[1770500173200,2.23228125,2110.0,2109.7,1.18500184]
[1770500173497,0.00200001,2110.4,2109.8,2.26009254]
[1770500173657,2.23428126,2110.5,2109.9,1.18489027]
[1770500175983,2.23428126,2110.5,2109.7,1.1850026]
[1770500176384,2.23428126,2110.5,2109.7,3.44509514]
[1770500177477,2.23428126,2110.5,2109.7,1.1850026]
[1770500177979,2.23428126,2110.5,2109.6,7.0011831]
[1770500177980,0.00200001,2110.5,2109.8,2.26009254]
[1770500179258,0.002,2110.6,2109.8,2.26009254]
[1770500179464,0.002,2110.6,2110.0,2.26009254]
[1770500180196,0.002,2110.6,2110.2,2.26009254]
[1770500180976,0.00200001,2110.5,2110.2,2.26009254]
[1770500182293,0.00200001,2110.5,2110.4,0.001]
[1770500186004,2.23228125,2110.5,2110.1,0.001]
[1770500186305,2.23428126,2110.4,2110.1,0.001]
[1770500188799,2.23228125,2110.3,2109.6,0.001]
[1770500188985,2.23328126,2110.3,2109.6,0.001]
[1770500189498,2.23328126,2110.2,2109.6,0.001]
[1770500191610,2.23228125,2110.0,2109.6,0.001]
[1770500191985,2.23328126,2109.9,2109.6,0.001]
[1770500192196,2.22755126,2109.9,2109.6,0.001]
[1770500194510,2.22755126,2109.9,2109.8,0.001]
[1770500195803,2.14480597,2110.2,2109.8,0.001]
[1770500196106,2.14480597,2110.3,2109.8,0.001]
[1770500198496,2.14480597,2110.2,2109.8,0.001]
[1770500203701,2.14480597,2110.1,2109.6,0.001]
[1770500206198,2.14480597,2109.7,2109.3,0.001]
[1770500207633,2.14480597,2109.9,2109.3,0.001]
[1770500207841,0.002,2110.0,2109.3,2.21661911]
[1770500211129,0.002,2110.0,2109.4,1.18517113]
[1770500211504,2.14680597,2110.0,2109.4,1.18517113]
[1770500213516,2.14680597,2110.0,2109.3,0.001]
[1770500218438,2.14680597,2110.0,2109.5,0.001]
[1770500218738,0.002,2109.8,2109.5,0.001]
[1770500219354,2.14680597,2109.8,2109.5,0.001]
[1770500221446,2.14680597,2109.8,2109.3,0.001]
[1770500221447,2.14480597,2109.7,2109.3,0.001]
[1770500222732,2.14480597,2109.5,2109.1,0.001]
[1770500223134,2.14480597,2109.3,2108.9,0.001]
[1770500223743,2.12800426,2109.3,2108.9,0.001]
[1770500224528,2.14480597,2109.1,2108.9,0.001]
[1770500224732,2.14480597,2109.1,2108.7,0.001]
[1770500225453,1.18512651,2109.5,2108.7,0.001]
[1770500225454,2.18936297,2109.3,2108.7,0.001]
[1770500226047,2.18936297,2109.6,2108.7,2.18570518]
[1770500227559,2.18936297,2109.6,2108.8,3.37021352]
[1770500227765,2.18936297,2109.7,2108.9,2.18470518]
[1770500230242,2.18936297,2109.7,2109.0,1.18539592]
[1770500230531,0.002,2109.5,2109.0,1.18539592]
[1770500232029,2.19290338,2109.5,2108.9,1.18641482]
[1770500232234,0.002,2109.5,2108.9,3.33360249]
[1770500232436,0.002,2109.5,2109.0,2.14718767]
[1770500232831,2.19290338,2109.5,2108.9,1.18641482]
[1770500235165,2.19290338,2109.5,2108.9,0.001]
[1770500239381,2.19290338,2109.5,2108.7,0.001]
[1770500239382,2.19090338,2109.4,2108.7,0.001]
[1770500240709,2.19090338,2109.2,2108.7,0.001]
[1770500242476,2.19090338,2109.2,2108.9,0.001]
[1770500242658,2.19290338,2109.1,2108.7,0.001]
[1770500246589,0.002,2109.1,2108.7,2.14818767]
[1770500246891,0.002,2109.1,2108.7,0.001]
[1770500247489,2.19090338,2109.0,2108.7,0.001]
[1770500250865,2.07776647,2109.0,2108.7,0.001]
[1770500251487,2.19090338,2108.9,2108.6,0.001]
[1770500253598,0.002,2109.1,2108.6,0.001]
[1770500253796,0.002,2109.1,2108.6,2.14818767]
[1770500254281,0.002,2109.1,2108.8,2.14818767]
[1770500254602,0.002,2109.0,2108.8,0.001]
[1770500254992,0.002,2109.0,2108.8,2.14818767]
[1770500255305,0.002,2109.3,2108.9,1.18545213]
[1770500255306,1e-08,2109.3,2108.9,1.18545213]
[1770500255472,1e-08,2109.3,2108.8,3.33365735]
[1770500255672,1e-08,2109.3,2108.8,1.18646968]
[1770500256095,2.28685471,2109.3,2108.8,1.18646968]
[1770500256305,2.2868547,2109.1,2108.8,0.001]
[1770500257305,1e-08,2109.3,2108.8,0.001]
[1770500257603,1e-08,2109.3,2108.8,2.11341029]
[1770500257899,1e-08,2109.3,2108.8,0.001]
[1770500258899,1e-08,2109.3,2108.8,2.11341029]
[1770500259499,1e-08,2109.3,2108.9,1.18545213]
[1770500266117,1e-08,2109.3,2108.8,2.11341029]
[1770500266615,1e-08,2109.3,2109.0,0.001]
[1770500267013,0.002,2109.1,2109.0,0.001]
[1770500267915,2.2888547,2109.1,2108.8,0.001]
[1770500268116,0.002,2109.1,2108.8,0.001]
[1770500269310,2.2888547,2109.1,2108.8,0.001]
[1770500270292,1e-08,2109.3,2108.8,2.11341029]
[1770500270515,0.002,2109.5,2108.9,2.11241029]
[1770500272916,0.002,2109.5,2109.0,1.18539592]
[1770500274122,0.002,2109.5,2109.0,3.29780621]
[1770500274813,0.002,2109.5,2109.0,1.18539592]
[1770500275015,0.002,2109.5,2109.0,2.11241029]
[1770500279126,2.2888547,2109.5,2108.8,2.11341029]
[1770500279327,2.2888547,2109.5,2109.1,0.001]
[1770500279636,0.002,2109.3,2109.1,0.001]
[1770500281129,1e-08,2109.7,2109.4,2.11241029]
[1770500284121,1e-08,2109.7,2109.5,1.18511495]
[1770500285438,1e-08,2109.7,2109.6,2.25141879]
[1770500286625,1e-08,2109.7,2109.6,3.43647756]
[1770500290045,1e-08,2109.7,2109.6,1.18505877]
[1770500291011,1e-08,2109.7,2109.3,1.18522732]
[1770500291414,1e-08,2109.7,2109.4,2.25141879]
[1770500291640,0.002,2109.5,2109.4,2.25141879]
[1770500291955,1e-08,2109.7,2109.5,2.29282659]
[1770500292241,2.19611153,2110.3,2109.6,2.29182659]
[1770500292941,4.30029263,2110.6,2109.6,2.29182659]
[1770500293147,2.19811153,2110.4,2109.7,3.47682919]
[1770500293844,0.002,2110.4,2109.8,2.29182659]
[1770500295248,0.002,2110.4,2109.9,1.18489027]
[1770500295636,0.002,2110.4,2109.9,3.47671686]
[1770500297451,0.002,2110.4,2109.9,1.18489027]
[1770500299374,2.19811153,2110.2,2109.6,2.29182659]
[1770500299534,2.19811153,2110.2,2109.1,4.29929263]
[1770500299535,2.19611153,2109.8,2109.3,1.1852271]
[1770500301645,2.19611153,2109.8,2109.4,1.18516574]
[1770500302154,4.29829263,2110.1,2109.4,1.18516574]
[1770500302155,2.19611153,2110.0,2109.4,1.18516574]
[1770500303666,2.19611153,2110.0,2109.5,0.001]
[1770500304039,0.002,2109.6,2109.5,0.001]
[1770500304454,2.19611153,2110.0,2109.9,0.582795]
[1770500304657,2.19611153,2110.0,2109.5,0.001]
[1770500305343,2.19811153,2110.2,2109.5,0.001]
[1770500305538,2.19811153,2110.2,2109.5,2.29282659]
[1770500307463,2.19811153,2110.2,2109.6,1.18505877]
[1770500310234,2.19811153,2110.2,2109.5,0.001]
[1770500311974,0.002,2110.2,2109.5,2.29282659]
[1770500312466,2.19611153,2109.5,2109.1,0.001]
[1770500312632,6.53007174,2109.2,2108.8,0.001]
[1770500312963,2.23177911,2109.2,2108.8,1.18649843]
[1770500313171,2.23177911,2109.2,2108.7,4.74321431]
[1770500313172,2.19611153,2109.0,2108.7,0.001]
[1770500313667,0.03566758,2108.9,2108.7,0.001]
[1770500313877,6.219386,2110.0,2108.8,2.29182659]
[1770500314177,2.23177911,2109.4,2108.7,0.001]
[1770500314334,2.19611153,2109.0,2108.7,0.001]
[1770500315441,2.21926721,2109.2,2108.7,0.001]
[1770500315644,0.03566758,2109.0,2108.7,0.001]
[1770500317369,0.03566758,2109.0,2108.5,0.001]
[1770500317564,2.25493479,2108.7,2108.1,5.93363057]
[1770500321444,2.21926721,2109.1,2108.2,2.25479153]
[1770500321944,0.03566758,2109.0,2108.2,2.25479153]
[1770500323790,0.03566758,2109.0,2108.3,1.18578949]
[1770500323964,2.21926721,2109.1,2108.3,1.18578949]
[1770500324364,2.21926721,2109.1,2108.3,3.44058102]
[1770500324852,0.03566758,2109.0,2108.3,3.44058102]
[1770500325473,2.21926721,2109.1,2108.3,3.44058102]
[1770500325682,0.03566758,2109.0,2108.3,3.44058102]
[1770500325889,2.25493479,2108.7,2108.2,1.18580723]
[1770500326997,2.25493479,2108.5,2108.1,4.74774882]
[1770500327277,2.25493479,2108.7,2108.0,1.18595063]
[1770500327481,0.03566758,2108.4,2108.0,1.18595063]
[1770500328678,0.03566758,2108.4,2107.8,0.001]
[1770500328679,2.21926721,2107.6,2106.8,1.18662183]
[1770500328973,0.40115147,2108.1,2107.0,2.50356324]
[1770500329774,0.40115147,2108.1,2108.0,0.001]
[1770500330355,0.36548389,2108.1,2108.0,0.001]
[1770500330559,0.36548389,2108.1,2107.4,1.18629029]
[1770500330783,0.36548389,2108.1,2107.5,0.24877171]
[1770500331376,1.55139065,2108.1,2107.5,0.24877171]
[1770500331565,1.74438886,2108.0,2107.5,0.24877171]
[1770500333156,1.74438886,2108.0,2107.2,4.74657936]
[1770500333157,2.21926721,2107.9,2107.2,0.001]
[1770500333358,2.81027898,2107.8,2107.2,0.001]
[1770500333564,0.69981918,2107.7,2107.2,0.001]
[1770500333773,0.69981918,2107.7,2107.2,0.24977171]
[1770500334377,0.69981918,2107.7,2106.7,2.25479153]
[1770500334570,0.69981918,2107.7,2106.7,1.16749159]
[1770500334770,1.18618333,2107.6,2106.7,1.16749159]
[1770500334972,0.59978958,2107.5,2106.8,1.18659445]
[1770500335169,0.59978958,2107.5,2106.7,7.0013801]
[1770500335369,0.59978958,2107.5,2106.9,2.25479153]
[1770500336783,0.59978958,2107.5,2107.0,1.18652112]
[1770500339091,0.59978958,2107.5,2106.8,2.25479153]
[1770500341189,2.81905679,2107.5,2106.9,1.18657743]
[1770500341389,0.35270506,2107.4,2106.8,1.18659869]
[1770500342201,0.35270506,2107.4,2107.2,0.001]
[1770500347025,2.30640179,2107.3,2106.1,0.001]
[1770500347212,2.27073421,2106.7,2106.1,0.001]
[1770500347423,2.27073421,2105.8,2104.9,1.18770487]
[1770500347581,0.24788735,2105.9,2105.0,2.15296736]
[1770500349005,0.24788735,2105.9,2105.1,1.18759203]
[1770500349179,0.24788735,2105.9,2105.1,3.34055939]
[1770500349532,0.24788735,2105.9,2105.1,1.18759203]
[1770500350198,3.70576948,2105.9,2105.0,1.18761255]
[1770500350410,0.24788735,2105.9,2105.0,3.34057991]
[1770500350709,0.24788735,2105.9,2105.1,2.15296736]
[1770500350922,0.24788735,2105.9,2105.0,1.18761255]
[1770500351782,0.24788735,2105.9,2105.0,3.44558795]
[1770500352106,0.24788735,2105.9,2105.1,2.2579754]
[1770500353017,0.3391952,2106.0,2105.1,2.2579754]
[1770500353189,0.3391952,2106.0,2105.3,2.2579754]
[1770500354110,3.48034596,2106.6,2105.3,2.2579754]
[1770500354318,0.34986576,2106.5,2105.3,2.2579754]
[1770500354821,0.34986576,2106.5,2105.5,0.001]
[1770500355013,2.6434303,2106.5,2105.5,0.001]
[1770500355209,2.29356454,2106.3,2105.5,0.001]
[1770500355522,0.33745332,2106.2,2105.5,0.001]
[1770500355891,0.33745332,2106.2,2105.5,2.2589754]
[1770500357116,2.29356454,2106.6,2105.5,2.2589754]
[1770500357319,0.33584485,2106.5,2105.7,2.2579754]
[1770500359193,0.33584485,2106.5,2105.8,1.18719726]
[1770500359399,0.33584485,2106.5,2105.8,3.44517266]
[1770500360327,0.34068509,2106.9,2105.9,2.2579754]
[1770500361020,2.63424963,2106.9,2105.9,2.2579754]
[1770500361323,2.29356454,2106.7,2106.0,1.18708452]
[1770500361500,2.29356454,2106.7,2106.3,0.03566758]
[1770500361700,2.29356454,2106.7,2106.0,1.2227521]
[1770500361902,2.29356454,2106.7,2106.3,0.03566758]
[1770500362103,2.29356454,2106.7,2106.0,1.2227521]
[1770500362316,2.29356454,2106.7,2106.3,0.03566758]
[1770500362900,0.002,2107.9,2107.1,0.03566758]
[1770500363120,0.002,2107.9,2107.4,0.03566758]
[1770500363121,2.29556454,2107.9,2107.4,0.03566758]
[1770500363327,0.002,2107.9,2107.5,0.03566758]
[1770500363826,0.002,2107.9,2107.8,0.03566758]
[1770500364325,0.002,2108.1,2107.4,0.03566758]
[1770500364549,2.29556454,2108.1,2107.4,0.03566758]
[1770500365064,2.29556454,2108.1,2107.7,0.03566758]
[1770500365400,3.48147978,2108.1,2107.4,0.03566758]
[1770500365600,2.29356454,2108.0,2106.8,1.18662857]
[1770500365897,2.29356454,2108.0,2107.3,0.03566758]
[1770500366093,2.29356454,2108.0,2107.4,1.18629389]
[1770500366298,2.29356454,2108.0,2107.6,0.03566758]
[1770500366906,0.002,2108.1,2107.9,0.03566758]
[1770500369251,0.002,2108.1,2107.4,2.2579754]
[1770500369413,2.29556454,2108.1,2106.9,0.03566758]
[1770500369732,2.29356454,2107.9,2107.2,0.03566758]
[1770500369909,1.18791237,2108.1,2107.5,0.03566758]
[1770500370112,0.002,2108.1,2107.8,0.03566758]
[1770500370314,2.29356454,2108.0,2106.8,1.22225971]
[1770500370543,2.29356454,2108.0,2107.1,0.03566758]
[1770500370840,1.18790847,2108.1,2107.4,0.03566758]
[1770500371735,2.29356454,2108.0,2107.4,0.03566758]
[1770500372077,0.002,2108.1,2107.7,0.03566758]
[1770500372214,1.18791576,2108.1,2107.7,0.03566758]
[1770500373040,0.002,2108.1,2107.7,0.03566758]
[1770500373337,0.002,2108.1,2108.0,0.03566758]
[1770500374249,0.002,2108.3,2108.0,0.03566758]
[1770500374544,0.002,2108.3,2108.0,1.22161387]
[1770500374708,0.002,2108.3,2108.0,0.03566758]
[1770500374909,0.002,2108.3,2108.0,1.22162528]
[1770500377154,0.002,2108.3,2108.0,0.03566758]
[1770500377955,0.002,2108.3,2107.6,1.18618297]
[1770500378140,0.002,2108.3,2107.8,0.03566758]
[1770500378649,0.002,2108.3,2107.5,0.03566758]
[1770500378650,2.29273656,2108.3,2107.5,0.03566758]
[1770500378850,2.29273656,2108.3,2107.5,1.22190576]
[1770500379755,3.47852605,2108.3,2108.2,0.001]
[1770500380257,3.47852605,2108.3,2108.0,0.001]
[1770500381038,3.47852605,2108.3,2108.1,0.03566758]
[1770500381353,0.002,2108.3,2108.0,0.001]
[1770500381556,0.002,2108.3,2108.1,0.03566758]
[1770500381736,1.18590199,2108.1,2107.5,0.03566758]
[1770500381940,3.47663855,2108.1,2107.5,0.03566758]
[1770500382835,3.47663855,2108.1,2107.2,1.18640433]
[1770500383041,3.47663855,2108.1,2107.5,0.03566758]
[1770500383243,3.47663855,2108.1,2107.2,1.18640433]
[1770500383443,3.47663855,2108.1,2107.5,0.03566758]
[1770500383642,3.47663855,2108.1,2107.1,1.22308549]
[1770500383959,3.47663855,2108.1,2107.5,0.03566758]
[1770500384960,3.47663855,2108.1,2107.1,1.22308878]
[1770500385161,3.47663855,2108.1,2107.5,0.03566758]
[1770500385657,2.29073656,2108.0,2106.8,0.03566758]
[1770500386037,2.29073656,2107.8,2106.9,0.03566758]
[1770500387037,2.29073656,2107.8,2106.5,0.03566758]
[1770500387361,2.29073656,2107.8,2106.8,0.03566758]
[1770500388945,2.29073656,2107.6,2106.6,0.03566758]
[1770500389958,2.29073656,2107.6,2106.3,0.03566758]
[1770500390164,2.29073656,2107.6,2106.6,0.03566758]
[1770500390972,1.18623962,2107.5,2106.6,0.03566758]
[1770500391148,2.29073656,2107.4,2106.6,0.03566758]
[1770500392467,2.29073656,2107.4,2106.8,0.001]
[1770500393068,2.29073656,2107.2,2106.5,0.001]
[1770500393256,2.29073656,2107.2,2106.1,0.001]
[1770500393460,1.18633791,2107.4,2106.9,0.03566758]
[1770500396353,3.47707447,2107.4,2106.9,0.03566758]
[1770500396549,3.47707447,2107.4,2106.6,0.03566758]
[1770500396753,2.29073656,2107.3,2106.4,0.03566758]
[1770500397668,2.29073656,2107.1,2106.3,0.03566758]
[1770500397861,2.29073656,2107.4,2106.6,0.03566758]
[1770500398269,2.29073656,2107.4,2106.3,0.03566758]
[1770500400047,2.29073656,2107.2,2106.3,0.03566758]
[1770500402043,3.47720136,2107.1,2106.1,2.31507121]
[1770500402241,3.47720136,2107.1,2106.3,0.03566758]
[1770500402446,1.1864648,2107.1,2106.3,0.03566758]
[1770500404087,1.1864648,2107.1,2106.1,1.18802717]
[1770500404088,2.29073656,2106.8,2106.1,0.001]
[1770500404245,2.29073656,2106.6,2105.9,0.001]
[1770500404848,0.39899567,2106.5,2105.9,0.001]
[1770500405047,2.29073656,2106.4,2105.7,0.001]
[1770500405351,2.29073656,2106.2,2105.7,0.001]
[1770500405652,0.33624503,2106.1,2105.7,0.001]
[1770500406367,1.18708452,2106.0,2105.7,0.001]
[1770500406681,0.33430541,2106.0,2105.8,0.03566758]
[1770500407883,0.33430541,2106.0,2105.7,0.001]
[1770500408088,0.33430541,2106.0,2105.8,0.03566758]
[1770500409385,0.33430541,2106.0,2105.8,3.51903727]
[1770500409601,0.33314597,2106.7,2105.9,2.29620749]
[1770500409764,0.33314597,2106.7,2106.1,0.03566758]
[1770500410284,0.33314597,2106.7,2105.9,2.29620749]
[1770500410492,1.18674641,2106.6,2105.8,1.22282978]
[1770500410876,0.33314597,2106.7,2106.1,0.03566758]
[1770500411079,0.33215417,2106.5,2106.1,0.03566758]
[1770500411390,0.33215417,2106.5,2106.4,0.03566758]
[1770500411690,0.33215417,2106.5,2106.1,0.03566758]
[1770500412197,0.33215417,2106.5,2106.1,2.38771976]
[1770500412565,0.33215417,2106.5,2106.2,1.18697179]
[1770500412767,0.33215417,2106.5,2106.1,1.22265215]
[1770500413063,0.33215417,2106.5,2105.8,2.38771976]
[1770500413270,3.79438184,2106.5,2105.7,0.001]
[1770500413475,3.79438184,2106.5,2105.7,1.22392095]
[1770500413677,2.27539678,2106.4,2105.7,0.001]
[1770500414269,1.51898506,2106.5,2105.7,0.001]
[1770500414475,2.27539678,2106.4,2105.7,0.001]
[1770500414683,1.18691544,2106.3,2105.7,0.001]
[1770500414907,1.18689424,2106.4,2105.7,0.001]
[1770500415217,0.329976,2106.3,2105.7,0.001]
[1770500415500,0.329976,2106.3,2105.9,0.03566758]
[1770500417593,0.329976,2106.3,2105.9,1.22278662]
[1770500418175,0.329976,2106.3,2105.9,1.22378662]
[1770500421092,0.329976,2106.3,2105.9,0.001]
[1770500421284,3.7922905,2106.3,2105.9,0.001]
[1770500421885,3.7922905,2106.3,2105.7,0.001]
[1770500424381,0.329976,2106.3,2106.1,0.03566758]
[1770500424589,0.329976,2106.3,2106.2,1.18697179]
[1770500424790,1.18661877,2106.9,2106.2,1.18697179]
[1770500424996,0.32836665,2107.1,2106.4,0.03566758]
[1770500425189,1.51483744,2107.1,2106.4,0.03566758]
[1770500425476,2.27539678,2107.0,2106.2,1.18697179]
[1770500425701,2.27539678,2107.0,2106.3,0.03566758]
[1770500426393,1.51483744,2107.1,2106.3,0.03566758]
[1770500426710,0.32836665,2107.1,2106.6,1.22241252]
[1770500427007,1.51484486,2107.1,2106.4,1.1868295]
[1770500427212,1.51484486,2107.1,2106.3,1.22254627]
[1770500427394,3.79024164,2107.1,2106.3,1.22254627]
[1770500427712,3.79024164,2107.1,2106.3,0.03566758]
[1770500428209,2.27539678,2107.0,2106.0,0.03566758]
[1770500428374,2.27539678,2107.0,2105.9,1.22276702]
[1770500428801,2.27539678,2106.8,2105.9,1.22276702]
[1770500430218,1.18657743,2106.9,2106.2,0.03566758]
[1770500430379,3.46197421,2106.9,2106.2,0.03566758]
[1770500430580,3.46197421,2106.9,2105.9,1.22276702]
[1770500430780,2.27539678,2106.8,2105.9,1.22276702]
[1770500431179,2.27539678,2106.8,2105.9,1.22280474]
[1770500432690,2.27539678,2106.8,2106.1,0.001]
[1770500432891,3.46208686,2106.7,2106.1,0.001]
[1770500433805,1.18863952,2106.8,2106.2,0.03566758]
[1770500434188,1.18863952,2106.8,2106.1,0.001]
[1770500434410,3.4640363,2106.8,2106.1,0.001]
[1770500438106,1.18863952,2106.8,2106.2,0.03566758]
[1770500441412,0.002,2106.8,2106.2,0.03566758]
[1770500441819,0.002,2106.8,2106.1,1.22365159]
[1770500443728,1.51469374,2107.0,2106.7,0.03566758]
[1770500443729,0.32811631,2107.0,2106.7,0.03566758]
[1770500443915,0.11793248,2107.0,2106.5,2.30609343]
[1770500444119,0.11793248,2107.0,2106.4,0.03566758]
[1770500445132,0.11793248,2107.0,2106.4,2.34176101]
[1770500445896,0.11793248,2107.0,2106.5,1.18680275]
[1770500446098,0.002,2106.6,2106.5,1.18680275]
[1770500446406,0.002,2106.6,2106.4,1.22248246]
[1770500448107,0.002,2106.6,2106.4,1.18681488]
[1770500448309,0.002,2106.6,2106.4,1.22248246]
[1770500450533,0.002,2106.6,2106.4,3.52857589]
[1770500452846,0.002,2106.6,2106.5,2.30609343]
[1770500453028,0.11793248,2107.0,2106.6,2.30609343]
[1770500453344,0.002,2107.4,2106.9,0.03566758]
[1770500454338,0.002,2107.4,2106.9,2.34176101]
[1770500454666,0.002,2107.4,2106.9,0.03566758]
[1770500455208,0.002,2107.4,2107.0,1.18652112]
[1770500457330,0.002,2107.4,2107.2,0.03566758]
[1770500458615,0.002,2107.4,2107.0,1.18652112]
[1770500459239,0.002,2107.2,2107.0,1.18652112]
[1770500460323,0.002,2107.4,2107.0,1.18652112]
[1770500460540,0.002,2107.4,2107.2,2.34176101]
[1770500460740,0.002,2107.4,2107.2,0.03566758]
[1770500461416,0.002,2107.4,2107.3,1.1863522]
[1770500462235,0.002,2107.6,2107.4,2.30609343]
[1770500462430,0.002,2107.6,2107.5,0.03566758]
[1770500463137,1e-08,2108.0,2107.5,0.03566758]
[1770500463517,1e-08,2108.0,2107.6,1.18618333]
[1770500466226,1e-08,2108.0,2107.8,0.03566758]
[1770500467131,0.002,2108.1,2107.8,2.32352186]
[1770500468350,0.002,2108.1,2107.9,1.18601451]
[1770500472553,1e-08,2108.6,2108.0,2.38096531]
[1770500472728,1e-08,2108.6,2108.4,0.03566758]
[1770500473049,1e-08,2108.6,2108.2,0.03566758]
[1770500474434,1e-08,2108.6,2108.5,0.03566758]
[1770500476053,0.33654957,2109.3,2108.6,2.38096531]
[1770500476227,0.33654957,2109.3,2108.7,0.03566758]
[1770500476427,2.67135084,2109.3,2108.7,0.03566758]
[1770500477443,2.67135084,2109.3,2108.5,1.18567702]
[1770500479069,2.33480127,2109.2,2108.4,1.18569016]
[1770500479250,2.33480127,2109.2,2108.4,1.18573297]
[1770500480262,2.33480127,2109.1,2108.5,0.03566758]
[1770500482855,2.33480127,2109.0,2108.4,1.1856845]
[1770500483238,0.002,2108.9,2108.5,1.18567049]
[1770500484852,0.002,2108.9,2108.3,4.74314413]
[1770500485265,0.002,2108.9,2108.0,1.18593239]
[1770500485266,2.33680127,2108.9,2108.0,1.18593239]
[1770500485568,2.33680127,2108.9,2108.1,1.22151652]
[1770500486858,2.33480127,2108.8,2108.2,1.18584024]
[1770500487056,0.002,2108.9,2108.4,0.03566758]
[1770500487866,0.002,2108.9,2108.2,3.56680555]
[1770500488069,0.002,2108.9,2108.4,0.03566758]
[1770500488241,0.002,2108.9,2108.4,2.41663289]
[1770500488959,0.002,2108.9,2108.5,1.18567702]
[1770500489875,4.74049056,2109.5,2108.5,1.18567702]
[1770500489876,2.33680127,2109.9,2109.0,2.38096531]
[1770500490042,2.33480127,2109.8,2108.7,2.38096531]
[1770500490374,2.33480127,2109.8,2108.5,1.18567702]
[1770500490745,2.33480127,2109.8,2108.4,1.22138834]
[1770500491171,2.33480127,2109.6,2108.4,1.22138834]
[1770500491551,2.33480127,2109.6,2108.4,3.60235365]
[1770500492769,2.33480127,2109.6,2108.4,1.22138834]
[1770500493537,2.33480127,2109.4,2108.4,1.22138834]
[1770500494440,2.33480127,2109.4,2108.4,1.22139515]
[1770500495542,3.58953384,2109.3,2108.4,1.22139515]
[1770500495744,2.40430652,2109.2,2108.6,0.001]
[1770500497660,1.18533971,2109.1,2108.6,0.001]
[1770500500753,2.40430652,2109.1,2108.4,0.001]
[1770500501066,2.40430652,2109.1,2108.0,0.03566758]
[1770500501253,2.40430652,2109.1,2107.8,1.18702853]
[1770500501456,2.40430652,2109.1,2107.9,1.18599873]
[1770500502453,2.40430652,2109.1,2108.0,1.18595662]
[1770500502855,2.40430652,2108.9,2107.8,4.74527313]
[1770500503271,2.40430652,2108.9,2107.8,1.18707078]
[1770500504376,2.40430652,2108.9,2107.9,2.42247277]
[1770500504741,2.40430652,2108.7,2107.8,0.001]
[1770500506347,2.40430652,2108.7,2107.8,1.18706946]
[1770500506575,2.40430652,2108.7,2107.8,0.001]
[1770500507083,2.40430652,2108.5,2107.8,0.001]
[1770500508255,2.40430652,2108.5,2108.0,0.001]
[1770500508448,2.40430652,2108.5,2107.8,0.001]
[1770500508978,2.40430652,2108.3,2107.8,0.001]
[1770500513559,3.59015226,2108.2,2107.8,0.001]
[1770500515994,3.58996594,2108.6,2107.8,2.42347277]
[1770500516159,1.18539592,2109.0,2108.0,2.42247277]
[1770500516689,3.58970244,2109.0,2108.0,2.42247277]
[1770500517188,3.58970244,2109.0,2108.2,0.03566758]
[1770500517386,1.18539592,2109.0,2108.2,2.45814035]
[1770500517887,0.002,2109.1,2108.2,2.45814035]
[1770500518187,2.40630652,2109.1,2108.2,3.6439442]
[1770500518563,2.40630652,2109.1,2108.3,2.42247277]
[1770500518891,0.002,2109.1,2108.3,2.42247277]
[1770500520589,0.002,2109.1,2108.5,2.45814035]
[1770500520995,0.002,2108.9,2108.5,2.45814035]
[1770500521295,0.002,2108.9,2108.3,2.42247277]